Cogmind - Beta 16 @@@ ROGUE MODE // 2026.01.06 @ 18:58:52 Player: MKultra Result: Self-destructed Performance ------------- Evolutions (3) 1500 Regions Visited (4) 800 Robots Destroyed (40) 200 Value Destroyed (1288) 1288 Prototype IDs (4) 80 Alien Tech Used (0) 0 Bonus (0) 0 TOTAL SCORE: 3868 Bonus ------- None Cogmind --------- Core Integrity 640/700 Matter 237/300 Energy 480/480 System Corruption 0% Temperature Cool (0) Movement Rolling (98) Ox1 Location -7/Factory Parts ------- > --- POWER (2) -------- Improved Deuterium Engine Improved Deuterium Engine > --- PROPULSION (3) --- Wheel Wheel Armored Wheel > --- UTILITY (5) ------ Improved Heat Sink Improved Heat Sink Large Storage Unit Improved Signal Interpreter > --- WEAPON (3) ------- Heavy Laser Heavy Laser Gauss Rifle > --- INVENTORY (15) --- Light Ion Engine Improved Ion Engine Heavy Laser Minigun Peak State ------------ > --- POWER ------------ Improved Deuterium Engine Improved Deuterium Engine > --- PROPULSION ------- Wheel Compact Wheel Armored Wheel > --- UTILITY ---------- Improved Heat Sink Improved Heat Sink Large Storage Unit Improved Signal Interpreter > --- WEAPON ----------- Heavy Laser Heavy Laser Gauss Rifle > --- INVENTORY -------- Light Ion Engine Improved Ion Engine Wheel Heavy Laser Minigun [Rating: 35] Favorites ----------- Power Subdweller Power Source Engine Subdweller Power Source Power Core Light Nuclear Core Propulsion Aluminum Leg Leg Aluminum Leg Wheel Compact Wheel Utility Scrap Shield Device Improved Heat Sink Storage Medium Storage Unit Processor Improved Signal Interpreter Protection Scrap Shield Weapon Light Cannon Energy Gun Heavy Laser Ballistic Gun Battle Rifle Ballistic Cannon Light Cannon Build | -11 -10 -10 -8 -7 ------- Run | Yrd Mat Sub Mat Fac Slots Evolved 6 | . . . 4 2 Power 1 | . . . 1 . Propulsion 1 | . . . 1 . Utility 3 | . . . 1 2 Weapon 1 | . . . 1 . Parts Attached 49 | . 7 15 24 3 Power 9 | . 1 3 3 2 Engine 8 | . . 3 3 2 Core 1 | . 1 . . . Reactor . | . . . . . Propulsion 10 | . . 4 5 1 Treads . | . . . . . Leg 4 | . . 4 . . Wheel 6 | . . . 5 1 Hover . | . . . . . Flight . | . . . . . Utility 13 | . 2 3 8 . Device 6 | . 1 1 4 . Storage 2 | . 1 . 1 . Processor 3 | . . . 3 . Hackware . | . . . . . Protection 2 | . . 2 . . Artifact . | . . . . . Weapon 17 | . 4 5 8 . Energy Gun 10 | . 3 2 5 . Energy Cannon . | . . . . . Ballistic Gun 6 | . 1 2 3 . Ballistic Cannon 1 | . . 1 . . Launcher . | . . . . . Special Weapon . | . . . . . Impact Weapon . | . . . . . Slashing Weapon . | . . . . . Piercing Weapon . | . . . . . Special Melee Weapon . | . . . . . Unidentified Prototypes 3 | . . . 3 . Parts Lost 13 | . . 6 6 1 Power 1 | . . 1 . . Propulsion 6 | . . 3 2 1 Utility 5 | . . 1 4 . Weapon 1 | . . 1 . . Highest Loss Streak 5 | . . 5 2 1 To Critical Strikes . | . . . . . Average Backups 4 | 6 6 3 3 4 Power . | 1 1 . . 1 Propulsion 1 | 4 3 1 . . Utility . | . . . . . Weapon 1 | 1 1 1 1 2 Tool/Special . | . . . . . Unused Backups 18 | 6 4 2 4 2 Power 1 | 1 . . . . Propulsion 9 | 2 4 2 1 . Utility 3 | 1 . . 2 . Weapon 5 | 2 . . 1 2 Tool/Special . | . . . . . Average Slot Usage (%) 84 | . 92 75 95 92 Engine 8 | . 9 3 18 15 Leg 19 | . 28 27 2 . Wheel 7 | . . . 23 23 Device 5 | . 7 . 13 15 Storage 4 | . 14 2 1 7 Processor 2 | . . . 7 7 Protection 6 | . . 11 1 . Energy Gun 12 | . 25 5 19 15 Ballistic Gun 7 | . 2 9 7 7 Ballistic Cannon 6 | . . 13 . . Peak Build Rating 35 | 6 10 12 30 35 Average Rating 13 | 6 8 8 24 33 On Entrance 12 | 6 6 10 12 27 Avg Prop Armor Cover (%) . | . . . . . Naked Turns . | . . . . . Heaviest Build 54 | 13 21 31 45 54 Greatest Support 44 | 20 20 20 44 38 Greatest Overweight (x) 13 | . 1 1 13 2 Average Overweight (x) . | . . . . 1 Largest Inventory Capacity 15 | 8 10 10 15 15 Average Capacity 7 | 8 9 5 6 15 Most Carried 8 | 6 8 6 6 5 Average Carried 4 | 6 6 3 3 4 Final Capacity 15 | 8 10 5 15 15 Final Carried 6 | 6 6 5 5 4 Class Distribution -------------------- 68% | Mutant 15% | Scavenger-Gunner 5% | Subdweller-Tank 4% | Skirmisher 3% | Scavenger-Mutant Dominant Class ---------------- Mutant | -10/Materials Mutant | -10/Subcaves Scavenger-Gunner | -8/Materials Scavenger-Gunner | -7/Factory Resources | -11 -10 -10 -8 -7 ----------- Run | Yrd Mat Sub Mat Fac Matter Collected 983 | 200 85 237 461 . Remotely . | . . . . . Salvage Created 1505 | . 362 221 922 . Parts 97 | . 22 16 59 . Haulers Intercepted 2 | . . . 2 . Recyclers Shooed . | . . . . . Parts Field Recycled . | . . . . . Retrieved Matter . | . . . . . Parts Self-Destructed 4 | . . 4 . . Prevented . | . . . . . Parts Restored . | . . . . . Kills | -11 -10 -10 -8 -7 ------- Run | Yrd Mat Sub Mat Fac Combat Hostiles Destroyed 32 | . 9 7 16 . Guns 29 | . 9 6 14 . Cannons 1 | . . 1 . . AOE 2 | . . . 2 . Classes Destroyed 10 | . 4 1 5 . Builder 1 | . . . 1 . Tunneler 1 | . 1 . . . Hauler 2 | . . . 2 . Recycler 1 | . . . 1 . Watcher 3 | . 1 . 2 . Swarmer 6 | . 3 . 3 . Grunt 10 | . 6 . 4 . Sentry 4 | . . . 4 . Hunter 5 | . . . 5 . Subdweller 7 | . . 7 . . Best Kill Streak 5 | . 3 2 5 . Combat Bots Only 3 | . 3 2 3 . Max Kills in Single Turn 2 | . 2 1 2 . Gunslinging . | . . . . . Exploded 1 | . . . 1 . Melee . | . . . . . Uniques/NPCs Destroyed . | . . . . . Combat | -11 -10 -10 -8 -7 -------- Run | Yrd Mat Sub Mat Fac Hostile Shots Fired 164 | . 27 59 75 3 Missed 31 | . 7 8 16 . Hits 133 | . 20 51 59 3 Projectile 133 | . 20 51 59 3 Critical Strikes 5 | . . 2 3 . Damage Taken 2245 | . 215 1101 781 148 Core 420 | . 35 156 169 60 Absorbed by Shields . | . . . . . Core Remaining (%) 64 | 100 . 23 69 . Volleys Fired 101 | . 23 29 47 2 Largest 3 | . 2 2 3 3 Hottest 188 | . 115 105 188 166 Shots Fired 247 | . 46 56 139 6 Gun 230 | . 46 39 139 6 Cannon 17 | . . 17 . . Launcher . | . . . . . Special . | . . . . . Kinetic 80 | . 5 29 44 2 Thermal 150 | . 41 27 78 4 Explosive . | . . . . . Electromagnetic 17 | . . . 17 . Robot Hit Streak 27 | . 10 27 16 2 Robot Miss Streak 7 | . 6 2 7 4 Penetration Max . | . . . . . Secondary Targets 1 | . 1 . . . Max Gunslinging Chain 1 | . 1 . . . Shots Hit Robots 149 | . 31 41 75 2 Core Hits 71 | . 18 13 39 1 Critical Kills 1 | . . 1 . . Critical Parts Destroyed 1 | . . . 1 . Critical Strikes 7 | . 2 1 3 1 Burn 5 | . 2 . 2 1 Destroy 2 | . . 1 1 . Melee Attacks . | . . . . . Impact . | . . . . . Slashing . | . . . . . Piercing . | . . . . . Sneak Attacks . | . . . . . Combat Hostiles . | . . . . . Follow-up Attacks . | . . . . . Damage Inflicted 2656 | . 431 578 1608 39 Guns 2383 | . 431 455 1458 39 Cannons 123 | . . 123 . . Explosions 101 | . . . 101 . Melee . | . . . . . Ramming 49 | . . . 49 . Kinetic 840 | . 61 242 537 . Thermal 1421 | . 370 336 676 39 Explosive . | . . . . . Electromagnetic 346 | . . . 346 . Impact . | . . . . . Slashing . | . . . . . Piercing . | . . . . . Highest Corruption 1 | . . . 1 . Average Corruption 1 | . . . 1 . Corruption Purged . | . . . . . Corruption Blocked . | . . . . . Effects 1 | . . . 1 . Data Loss (minor) 1 | . . . 1 . Overload Shots . | . . . . . Overflow Damage . | . . . . . Projectiles . | . . . . . Explosions . | . . . . . Melee . | . . . . . Knockbacks 3 | . . 3 . . Impact . | . . . . . Kinetic 3 | . . 3 . . Secondary . | . . . . . Self-Inflicted Damage 22 | . . . 22 . Shots . | . . . . . Rammed 6 | . . . 6 . Targets Rammed 6 | . . . 6 . Kicked . | . . . . . Crushed . | . . . . . Highest Temperature 306 | . 306 2 304 21 Average Temperature 86 | . 87 2 89 14 Received Heat Transfer 612 | . 105 282 225 . Siege Activations . | . . . . . Martial Activations . | . . . . . Shielding Activations . | . . . . . Robots Disrupted . | . . . . . Combat Hostiles . | . . . . . Robots Corrupted . | . . . . . Combat Hostiles . | . . . . . Parts Fried 1 | . . . 1 . Impact Corruptions . | . . . . . Robots Melted . | . . . . . Combat Hostiles . | . . . . . Parts Melted 4 | . 2 1 1 . Heat Transferred 3292 | . 1112 782 1250 148 Parts Sabotaged . | . . . . . Parts Stolen . | . . . . . Parts Stripped . | . . . . . Power Chain Reactions 2 | . . . 2 . Alert | -11 -10 -10 -8 -7 ------- Run | Yrd Mat Sub Mat Fac Maximum Alert Level . | . . . . . Low Security (%) 100 | 100 100 . 100 100 Level 1 . | . . . . . Level 2 . | . . . . . Level 3 . | . . . . . Level 4 . | . . . . . Level 5 . | . . . . . High Security . | . . . . . Max Security . | . . . . . Peak Influence 176 | . 106 . 176 15 Initial 15 | . . . . 15 Average 41 | . 59 . 62 4 Influence Increases 791 | . 228 . 548 15 Destroy 0b10 Robot/C 500 | . 180 . 320 . Destroy 0b10 Robot/NC 40 | . 10 . 30 . Destroy Leader 140 | . 32 . 108 . Trap Triggered on 0b10 20 | . . . 20 . Successful Hack 33 | . 5 . 28 . Destroy Structure 13 | . 1 . 12 . Lose Combat Pursuer 45 | . . . 30 15 Influence Decreases 791 | . 192 36 514 49 Entered New Map 37 | . . 18 . 19 Time Decay 546 | . 192 18 306 30 Lost Part 58 | . . . 58 . Purge Threat 150 | . . . 150 . Squads Dispatched 3 | . 2 . 1 . Investigation 3 | . 2 . 1 . Extermination . | . . . . . Reinforcement . | . . . . . Assault . | . . . . . Garrison . | . . . . . Intercept . | . . . . . Searches Triggered . | . . . . . Construction Impeded . | . . . . . Haulers Reinforced . | . . . . . Active Scanning Responses . | . . . . . Cargo Convoy Interrupts . | . . . . . Stealth | -11 -10 -10 -8 -7 --------- Run | Yrd Mat Sub Mat Fac Distress Signals 4 | . . . 3 1 Communications Jammed . | . . . . . Distress Signals . | . . . . . Times Spotted 48 | . 13 7 27 1 Peak Tracking Total 5 | . 3 2 5 2 Tactical Retreats 3 | . . . 2 1 Traps | -11 -10 -10 -8 -7 ------- Run | Yrd Mat Sub Mat Fac Traps Triggered 1 | . 1 . . . Indirectly . | . . . . . Trap Hack Attempts . | . . . . . Triggered . | . . . . . Disarmed . | . . . . . Reprogrammed 4 | . . . 4 . Reused 2 | . . . 2 . Traps Extracted . | . . . . . Installed . | . . . . . Triggered 2 | . . . 2 . Machines | -11 -10 -10 -8 -7 ---------- Run | Yrd Mat Sub Mat Fac Machines Disabled . | . . . . . Max in Single Turn . | . . . . . Machines Repaired . | . . . . . Machines Dismantled . | . . . . . Machines Sabotaged . | . . . . . Overloaded Fab Kills . | . . . . . Hacking | -11 -10 -10 -8 -7 --------- Run | Yrd Mat Sub Mat Fac Machines Accessed 13 | . 3 . 9 1 Terminals 11 | . 3 . 7 1 Fabricators . | . . . . . Repair Stations . | . . . . . Recycling Units . | . . . . . Scanalyzers 2 | . . . 2 . Garrison Access . | . . . . . Total Hacks 36 | . 7 . 28 1 Successful 17 | . 2 . 15 . Failed 19 | . 5 . 13 1 Catastrophic 5 | . 2 . 2 1 Database Lockouts . | . . . . . Manual 26 | . 6 . 19 1 Terminals 33 | . 7 . 25 1 Fabricators . | . . . . . Repair Stations . | . . . . . Recycling Units . | . . . . . Scanalyzers 3 | . . . 3 . Garrison Access . | . . . . . Terminal Hacks 10 | . 1 . 9 . Prototype ID Bank 1 | . . . 1 . Branch Access Points 1 | . . . 1 . Terminal Index 1 | . . . 1 . Alert Level 1 | . 1 . . . Unreport Threat 1 | . . . 1 . Locate Traps 1 | . . . 1 . Reprogram Traps 1 | . . . 1 . Dispatch Records 1 | . . . 1 . Hauler Manifests 1 | . . . 1 . Zone Layout 1 | . . . 1 . Fabricator Hacks . | . . . . . Repair Station Hacks . | . . . . . Recycling Unit Hacks . | . . . . . Scanalyzer 1 | . . . 1 . Retrieve Study 1 | . . . 1 . Garrison Access Hacks . | . . . . . Unauthorized Hacks 6 | . 1 . 5 . Terminals 6 | . 1 . 5 . Botnet 6 | . 1 . 5 . Fabricators . | . . . . . Repair Stations . | . . . . . Recycling Units . | . . . . . Scanalyzers . | . . . . . Garrison Access . | . . . . . Data Cores Recovered . | . . . . . Used . | . . . . . Hacking Detections 13 | . 3 . 9 1 Full Trace Events 2 | . 2 . . . Feedback Events . | . . . . . Feedback Blocked . | . . . . . Robot Schematics Acquired . | . . . . . Robots Built . | . . . . . Authchips . | . . . . . Time . | . . . . . Total Robot Build Rating . | . . . . . Part Schematics Acquired . | . . . . . Parts Built . | . . . . . Authchips . | . . . . . Time . | . . . . . Total Part Build Rating . | . . . . . Part Studies Acquired 1 | . . . 1 . Parts Repaired . | . . . . . Time . | . . . . . Parts Recycled . | . . . . . Recycled Matter . | . . . . . Retrieved Matter . | . . . . . Retrieved Components . | . . . . . Parts Scanalyzed . | . . . . . Part Schematics Acquired . | . . . . . Parts Damaged . | . . . . . Bothacking | -11 -10 -10 -8 -7 ------------ Run | Yrd Mat Sub Mat Fac Used RIF Installer . | . . . . . Robots Hacked . | . . . . . Non-combat . | . . . . . Combat . | . . . . . Robot Hacks Applied . | . . . . . Relay Couplers Released . | . . . . . Fabnet Peak Effective % . | . . . . . Robots Rewired . | . . . . . Allies Hacked . | . . . . . Hacks Repelled . | . . . . . Allies | -11 -10 -10 -8 -7 -------- Run | Yrd Mat Sub Mat Fac Total Allies . | . . . . . Largest Group . | . . . . . Highest-Rated Group . | . . . . . Highest-Rated Ally . | . . . . . Total Orders . | . . . . . Ally Attacks . | . . . . . Total Damage . | . . . . . Kills . | . . . . . Allies Corrupted . | . . . . . Allies Melted . | . . . . . Intel | -11 -10 -10 -8 -7 ------- Run | Yrd Mat Sub Mat Fac Active Infowar (turns) 491 | . . 6 485 . Optics 491 | . . 6 485 . Robot Analysis Total . | . . . . . Derelict Logs Recovered . | . . . . . Drone Launches . | . . . . . Drone Recoveries . | . . . . . Exploration | -11 -10 -10 -8 -7 ------------- Run | Yrd Mat Sub Mat Fac Turns Passed 3614 | 507 465 1641 865 136 Spaces Moved 1807 | 3 233 864 586 121 Core 1 | . . . 1 . Treads . | . . . . . Legs 1141 | 3 233 864 41 . Wheels 665 | . . . 544 121 Hover . | . . . . . Flight . | . . . . . Fastest Speed 90 | 120 120 120 90 98 Average Speed 138 | 120 122 174 101 100 Slowest Speed 700 | 120 190 190 700 115 Overloaded Moves . | . . . . . Propulsion Burnouts . | . . . . . Robots Hopped . | . . . . . Potential Cave-ins . | . . . . . Cave-ins Triggered . | . . . . . Exploration Rate (%) 24 | 2 42 34 43 2 Regions Visited 4 Branch Regions 1 Pre-discovered Areas . | . . . . . Known Exits Taken 1 | . . . 1 . Unknown Exits Taken 3 | 1 1 1 . . Scrap Searched . | . . . . . Spaces Dug . | . . . . . Terrain Destroyed 10 | . . . 10 . Melee . | . . . . . Projectile . | . . . . . AOE 10 | . . . 10 . Terrain Rammed . | . . . . . Walls Destroyed . | . . . . . Machines Disabled . | . . . . . Actions | -11 -10 -10 -8 -7 --------- Run | Yrd Mat Sub Mat Fac Total 2708 | 506 368 949 755 130 Wait 639 | 504 91 13 31 . Move 1803 | 2 232 863 585 121 Hop . | . . . . . Pick Up 56 | . 8 14 32 2 Fast Attach . | . . . . . Attach 35 | . 2 10 21 2 Detach . | . . . . . Swap 27 | . 5 8 12 2 Drop 39 | . 7 10 21 1 Fire 101 | . 23 29 47 2 Melee . | . . . . . Ram 6 | . . . 6 . Kick . | . . . . . Crush . | . . . . . Escape Stasis . | . . . . . Rewire . | . . . . . Trap . | . . . . . Miscellaneous 2 | . . 2 . . Route ------- -11/Scrapyard -10/Materials (discovered 2 exits: [*Mat] / [*Sub]) -10/Subcaves (discovered 2 exits: *Mat / [*Scr]) -8/Materials -7/Factory History --------- Turn | Location | Event 1 | -11/Scrapyard | Discovered new exit (range 1) 508 | -11/Scrapyard | Entered Materials 509 | -10/Materials | Build established: Mutant 661 | -10/Materials | Discovered new exit (range 15) 956 | -10/Materials | Discovered new exit (range 5) 973 | -10/Materials | Entered Subcaves 974 | -10/Subcaves | Approached by a straggling Scientist 1011 | -10/Subcaves | Scientist uncovered a shortcut to Scraptown 1036 | -10/Subcaves | Core integrity fell below 50% 1066 | -10/Subcaves | Lost 5 parts (1p2n1u1w) 1533 | -10/Subcaves | A swath of the cavern ceiling suddenly collapsed 1695 | -10/Subcaves | A swath of the cavern ceiling suddenly collapsed 1749 | -10/Subcaves | Shifting Twisted Machinery released Battle Rifle 1763 | -10/Subcaves | Shifting Twisted Machinery released Sub. Laser 2534 | -10/Subcaves | Discovered new exit (range 11) 2614 | -10/Subcaves | Entered Materials 2614 | -8/Materials | Evolved 4 slots: Power x1, Propulsion x1, Utility x1, Weapon x1 3124 | -8/Materials | Discovered new exit (range 18) 3177 | -8/Materials | Identified exit to Factory 3479 | -8/Materials | Entered Factory 3479 | -7/Factory | Evolved 2 slots: Utility x2 3589 | -7/Factory | Build established: Scavenger-Gunner 3615 | -7/Factory | Self-destructed Last Messages --------------- 03459_ Dropped Faulty Prc. Beam Rifle. 03460_ Acquired 14 matter. 03461_ K-01 Serf collects debris. 03466_ Acquired Prototype Ballistic Gun. 03467_ Identified Imp. Assault Rifle. 03468_ Dropped Imp. Assault Rifle. 03470_ Acquired Ion Engine. PARAMETERS=UTILITY+2 LOCATION=FACTORY GOAL=ESCAPE 03480_ T-07 Excavator is excavating. 03513_ Acquired Imp. Deuterium Engine. 03515_ Dropped Ion Engine. 03517_ Acquired Imp. Deuterium Engine. 03541_ Connecting with Terminal... 03558_ ALERT: All DSF locations entering lockdown mode. 03560_ Com. Wheel+ destroyed. 03601_ W-25 Informer suffers critical hit (Burn). 03603_ T-07 Excavator is excavating. Map ----- +----------------------------------------------------+ | ????????????????????????????##?????? | | ??????????????????????????? #?????? | | ??????????????????????????? #?????? | | ??????????????????????????? #?????? | | ??????????????????????????# ??????? | | ?????????????????????????? ??????? | | ???????????????????????#### ####???? | | ???????????????????????# #???? | | ???????????????????????# #???? | | ??????????############## #???? | | ??????????# # #???? | | ??????????# # #???? | | ??????????# """"""""" # ###???? | | ??????????# # #?????? | | ??????????# """"""""" # #?????? | | ??????????# + #?????? | | ??????????# """"""""" # #?????? | | ??????????# # #?????? | | ??????????# """"""""" # #?????? | | ??????????# # #?????? | | ??????????# """"""""" # #?????? | | ??????????# # #?????? | | ??????????#########+#### ####### | | ??????????????????# ???# # # | | ??????????????????# ???# # """ # | | ??????????????????#????# @ # """ # | | ??????????????????# ???# # """ # | | ????????????####### #### # # | | ???????????? % # ! # | | ??????????? + !* # | | ???????????? %# ! # | | ???????????? # # | | ????????????? # # | | ??????????????########## # | # | | ???????????????????????# # ! # | | ???????????????????????# ####### | | ???????????????????????# #?????? | | ???????????????????????# #?????? | | ??????????????????###### #?????? | | ??????????????????+ #?????? | | ??????????????????########+#######?? | | ???????????????????# """ #?? | | ???????????????????# "T" #?? | | ???????????????????# " " #?? | | ???????????????????# #?? | | ???????????????????# #?? | | ???????????????????# #?? | | ???????????????????# """""" #?? | | ???????????????????# """""" #?? | | ???????????????????# """""" #?? | +----------------------------------------------------+ Best States ------------- Heat Dissipation 62 Energy Generation 27 Energy Capacity 480 Matter Stores 300 Matter Capacity 300 Sight Range 21 Terrain Scan Density 10 Armor Coverage 800 Evasion (%) 55 Targeting Accuracy 5 Item Schematics ----------------- None Robot Schematics ------------------ None Fabricated ------------ Nothing Repaired ---------- Nothing Studied --------- Com. Wheel | -8/Materials | Hacked Alien Tech Used ----------------- None Achievements -------------- Survival Of The Most Covered Challenges ------------ None Game ------ Seed LargeNetworkCharge Manual? 0 Play Time 00:24:09 Cumulative 40.6 hours Start 2026.01.05 @ 20:35:01 End 2026.01.06 @ 18:58:52 Sessions 3 Manual Loads 0 Difficulty Rogue Special Mode None Game No. 23 Rogue 5 Adventurer 0 Explorer 18 Win Type - Total 5 Types 2/0/1/0/0/0/1/0/1/0 Lore% 35 Gallery% 38 Achievement% 44 Wizard Run 0 Options --------- Layout 1 ASCII 0 Keyboard 0 Movement Mouse Keybinds 0 Fullscreen 1 Font 16/SmallcapsGlow Map View 55x38 Zoom Use 0% Tactical HUD 1 Map Filters NONE Filters NONE Steam 1 RUN: 393f94b7-2415-4b92-9576-0934015c7474